bitfinex-derivatives/quotes_BTCF0:USTF0_20260207
["timestamp","ask_amount","ask_price","bid_price","bid_amount"]
[1770473388086,6.433e-05,69105.0,69087.0,0.54824164]
[1770473388294,0.00012199,69106.0,69087.0,0.54824164]
[1770473391190,6.433e-05,69105.0,69087.0,0.54824164]
[1770473391388,0.00012199,69106.0,69087.0,0.54824164]
[1770473391988,6.433e-05,69105.0,69087.0,0.54824164]
[1770473392201,0.00012199,69106.0,69087.0,0.54824164]
[1770473395293,6.433e-05,69105.0,69087.0,0.54824164]
[1770473395490,0.00012199,69106.0,69087.0,0.54824164]
[1770473396097,6.433e-05,69105.0,69090.0,0.54824164]
[1770473396297,6.433e-05,69104.0,69092.0,0.54824164]
[1770473396491,0.00012199,69118.0,69092.0,0.54824164]
[1770473396798,0.5737393,69118.0,69094.0,0.54824164]
[1770473398289,0.001,69106.0,69094.0,0.54824164]
[1770473399198,0.001,69106.0,69094.0,0.24641974]
[1770473399390,0.00012199,69105.0,69083.0,0.54824164]
[1770473399587,0.57361731,69111.0,69083.0,0.54824164]
[1770473400407,0.57361731,69109.0,69083.0,0.54824164]
[1770473401293,0.00012199,69108.0,69083.0,0.54824164]
[1770473401493,0.00012199,69111.0,69083.0,0.56273164]
[1770473401700,0.57361731,69114.0,69083.0,0.56273164]
[1770473401900,0.046,69106.0,69083.0,0.56273164]
[1770473402296,0.43027386,69117.0,69087.0,0.01449]
[1770473402595,0.00012199,69116.0,69088.0,0.54824164]
[1770473402803,0.57361731,69119.0,69092.0,0.54824164]
[1770473403896,0.57361731,69117.0,69092.0,0.54824164]
[1770473404792,0.57361731,69117.0,69085.0,0.54824164]
[1770473405292,0.57361731,69111.0,69085.0,0.54824164]
[1770473406004,0.55132758,69110.0,69085.0,0.54824164]
[1770473406409,0.55120559,69109.0,69085.0,0.54824164]
[1770473407498,0.98147945,69109.0,69085.0,0.54824164]
[1770473407702,0.55120559,69108.0,69085.0,0.54824164]
[1770473408402,0.55120559,69107.0,69085.0,0.54824164]
[1770473411203,0.52524443,69105.0,69085.0,0.54824164]
[1770473411500,0.52524443,69105.0,69078.0,0.82573385]
[1770473411693,0.52524443,69105.0,69079.0,0.53652508]
[1770473411898,0.52524443,69105.0,69077.0,0.005]
[1770473412100,0.52524443,69105.0,69074.0,0.53652508]
[1770473412501,0.001,69085.0,69074.0,0.53652508]
[1770473413002,0.52524443,69096.0,69074.0,0.53652508]
[1770473413304,0.00012199,69095.0,69074.0,0.53652508]
[1770473413801,0.00012199,69095.0,69078.0,0.29505395]
[1770473414504,0.52536642,69095.0,69063.0,0.005]
[1770473414906,0.52536642,69095.0,69060.0,0.53652508]
[1770473416001,0.52536642,69095.0,69067.0,0.53652508]
[1770473418001,0.52536642,69095.0,69067.0,0.53752508]
[1770473419109,0.52536642,69095.0,69069.0,0.53652508]
[1770473423211,0.00012199,69095.0,69069.0,0.55101808]
[1770473424804,0.00012199,69095.0,69069.0,0.53652508]
[1770473425205,0.00012199,69095.0,69069.0,0.53752508]
[1770473425405,0.00012199,69095.0,69072.0,0.53652508]
[1770473426108,0.00012199,69095.0,69076.0,0.53652508]
[1770473426309,0.00012199,69095.0,69077.0,0.014492]
[1770473426508,0.00012199,69095.0,69078.0,0.53652508]
[1770473427610,0.52536642,69095.0,69078.0,0.53652508]
[1770473428006,0.001,69089.0,69071.0,0.53652508]
[1770473428213,0.52524443,69089.0,69071.0,0.53652508]
[1770473430414,0.52524443,69089.0,69071.0,0.38808411]
[1770473431002,0.00012199,69088.0,69071.0,0.38808411]
[1770473431313,0.52536642,69093.0,69071.0,0.38808411]
[1770473431503,0.52524443,69093.0,69071.0,0.38808411]
[1770473431708,0.52524443,69087.0,69071.0,0.38808411]
[1770473432207,0.00012199,69086.0,69071.0,0.38808411]
[1770473432407,0.00012199,69086.0,69066.0,0.28949089]
[1770473432408,0.52536642,69086.0,69066.0,0.28949089]
[1770473433305,0.95564028,69086.0,69066.0,0.82601597]
[1770473433711,0.43027386,69084.0,69067.0,0.53652508]
[1770473434919,0.00012199,69086.0,69067.0,0.53652508]
[1770473435219,0.00012199,69083.0,69067.0,0.53652508]
[1770473435420,0.00012199,69088.0,69067.0,0.53652508]
[1770473435620,0.43027386,69090.0,69067.0,0.53652508]
[1770473435819,0.43039585,69091.0,69067.0,0.53652508]
[1770473438123,0.43027386,69089.0,69067.0,0.53652508]
[1770473438325,0.53695669,69088.0,69067.0,0.53652508]
[1770473439417,0.96723055,69088.0,69067.0,0.53652508]
[1770473440110,0.53695669,69087.0,69067.0,0.53652508]
[1770473440523,0.53695669,69087.0,69066.0,0.28949089]
[1770473440823,0.53695669,69085.0,69067.0,0.30207312]
[1770473441016,0.96723055,69085.0,69067.0,0.30207312]
[1770473441518,0.43027386,69084.0,69067.0,0.30207312]
[1770473441722,0.43027386,69084.0,69067.0,0.22275373]
[1770473441926,0.43027386,69082.0,69067.0,0.22275373]
[1770473442223,0.43027386,69083.0,69067.0,0.22275373]
[1770473443926,0.96723055,69085.0,69067.0,0.22275373]
[1770473444320,0.001,69077.0,69067.0,0.22275373]
[1770473446127,0.43027386,69084.0,69066.0,0.28949089]
[1770473446128,0.53695669,69075.0,69066.0,0.28949089]
[1770473446725,0.96723055,69081.0,69066.0,0.28949089]
[1770473446926,0.00012199,69080.0,69066.0,0.28949089]
[1770473447118,0.53695669,69079.0,69066.0,0.28949089]
[1770473447727,0.53695669,69079.0,69066.0,0.21481311]
[1770473450516,0.00012199,69080.0,69066.0,0.74188623]
[1770473450721,0.00012199,69080.0,69067.0,0.52707312]
[1770473451832,0.53707868,69080.0,69066.0,0.21481311]
[1770473453128,0.00012199,69080.0,69066.0,0.74188623]
[1770473453331,0.00012199,69080.0,69067.0,0.52707312]
[1770473453727,0.00012199,69080.0,69067.0,0.38989188]
[1770473456736,0.43027386,69089.0,69071.0,0.52707312]
[1770473457235,0.43027386,69095.0,69071.0,0.52707312]
[1770473457633,0.57708753,69106.0,69074.0,0.52707312]
[1770473457838,0.57708753,69106.0,69066.0,0.21481311]
[1770473457839,0.86148327,69126.0,69100.0,0.014487]
[1770473458137,0.53695669,69127.0,69098.0,0.014487]
[1770473458325,0.72040272,69135.0,69125.0,0.28536995]
[1770473458326,0.58333333,69134.0,69125.0,0.28536995]
[1770473458527,0.58333333,69134.0,69125.0,0.2742286]
[1770473458837,0.58333333,69134.0,69125.0,0.25750244]
[1770473459032,0.58333333,69134.0,69125.0,0.24634307]
[1770473459338,0.58333333,69134.0,69125.0,0.22959305]
[1770473459527,0.58333333,69141.0,69125.0,0.2184321]
[1770473459727,0.58333333,69148.0,69125.0,0.2184321]
[1770473460129,0.58333333,69148.0,69118.0,0.28585598]
[1770473460336,0.53695669,69125.0,69091.0,0.31733181]
[1770473460639,0.048,69124.0,69108.0,0.31733181]
[1770473461435,0.53695669,69139.0,69108.0,0.31733181]
[1770473461737,0.53695669,69148.0,69107.0,0.25405908]
[1770473461937,0.53695669,69148.0,69111.0,0.014485]
[1770473462929,0.53695669,69148.0,69107.0,0.25405908]
[1770473462930,0.58333333,69167.0,69107.0,0.25405908]
[1770473463143,0.58333333,69167.0,69115.0,0.014484]
[1770473463342,0.58333333,69167.0,69118.0,0.014483]
[1770473464840,0.58333333,69167.0,69107.0,0.25405908]
[1770473464841,0.58333333,69167.0,69113.0,0.014484]
[1770473465142,0.58333333,69167.0,69116.0,0.014484]
[1770473466542,0.58333333,69167.0,69119.0,0.014483]
[1770473467342,0.58333333,69167.0,69107.0,0.25405908]
[1770473467343,0.58333333,69167.0,69122.0,0.014482]
[1770473467540,0.58333333,69167.0,69124.0,0.014482]
[1770473469442,0.58333333,69167.0,69116.0,0.65049247]
[1770473469638,0.58333333,69167.0,69117.0,0.014483]
[1770473469842,0.58333333,69176.0,69139.0,0.014479]
[1770473470343,0.58333333,69176.0,69146.0,0.014477]
[1770473470943,0.58333333,69176.0,69149.0,0.014477]
[1770473471140,0.58333333,69191.0,69152.0,0.014476]
[1770473471350,0.58333333,69191.0,69175.0,0.29427208]
[1770473471942,0.58333333,69191.0,69168.0,0.28689357]
[1770473473441,0.58333333,69191.0,69169.0,0.29427208]
[1770473473746,0.58333333,69191.0,69168.0,0.28689357]
[1770473475040,0.58333333,69205.0,69168.0,0.28689357]
[1770473475248,0.58333333,69205.0,69175.0,0.29806233]
[1770473475638,0.58333333,69205.0,69176.0,0.00287402]
[1770473475839,0.58333333,69205.0,69178.0,0.00287402]
[1770473476242,0.58237532,69221.0,69182.0,0.00287402]
[1770473476440,0.58237532,69221.0,69184.0,0.00287402]
[1770473476640,0.58237532,69221.0,69186.0,0.00287402]
[1770473476835,0.58237532,69221.0,69188.0,0.00287402]
[1770473477439,0.58257532,69229.0,69188.0,0.00287402]
[1770473477649,0.58257532,69229.0,69194.0,0.00287402]
[1770473477844,0.58257532,69229.0,69178.0,0.001]
[1770473478347,0.58333333,69221.0,69178.0,0.001]
[1770473478742,0.58333333,69221.0,69176.0,0.014471]
[1770473479647,0.58333333,69221.0,69175.0,0.28359133]
[1770473480149,0.58333333,69221.0,69175.0,0.29806233]
[1770473480747,0.58333333,69221.0,69178.0,0.014471]
[1770473481043,0.58333333,69221.0,69181.0,0.01447]
[1770473481352,0.58333333,69221.0,69188.0,0.014468]
[1770473481537,0.58333333,69221.0,69178.0,0.01447]
[1770473481744,0.58333333,69221.0,69175.0,0.28359133]
[1770473483353,0.58333333,69221.0,69185.0,0.014469]
[1770473483655,0.58333333,69221.0,69190.0,0.014468]
[1770473483950,0.58333333,69221.0,69182.0,0.01447]
[1770473484152,0.58333333,69221.0,69185.0,0.014469]
[1770473484350,0.58333333,69221.0,69193.0,0.014467]
[1770473484550,0.58333333,69221.0,69189.0,0.014468]
[1770473484739,0.58333333,69221.0,69175.0,0.28359133]
[1770473484939,0.58333333,69221.0,69180.0,0.01447]
[1770473485153,0.58333333,69221.0,69182.0,0.01447]
[1770473485750,0.58333333,69221.0,69178.0,0.01447]
[1770473485951,0.58333333,69221.0,69180.0,0.01447]
[1770473486151,0.58333333,69221.0,69176.0,0.014471]
[1770473486345,0.58333333,69221.0,69183.0,0.014469]
[1770473486655,0.58333333,69221.0,69175.0,0.28359133]
[1770473486954,0.58333333,69221.0,69184.0,0.014469]
[1770473487345,0.58333333,69221.0,69193.0,0.29427208]
[1770473487854,0.58333333,69221.0,69186.0,0.014469]
[1770473488055,0.58333333,69221.0,69188.0,0.014468]
[1770473488548,0.58333333,69221.0,69175.0,0.28359133]
[1770473488956,0.58333333,69221.0,69192.0,0.014467]
[1770473489258,0.58333333,69221.0,69194.0,0.014467]
[1770473491552,0.58333333,69221.0,69190.0,0.014468]
[1770473491755,0.58333333,69221.0,69194.0,0.001]
[1770473492762,0.58333333,69221.0,69180.0,0.65181371]
[1770473493062,0.58333333,69221.0,69186.0,0.014469]
[1770473493254,0.58333333,69221.0,69180.0,0.66628371]
[1770473494161,0.58333333,69221.0,69182.0,0.01447]
[1770473494958,0.58333333,69221.0,69185.0,0.014469]
[1770473495458,0.58333333,69221.0,69182.0,0.01447]
[1770473496259,0.58333333,69221.0,69180.0,0.65181371]
[1770473496459,0.58333333,69221.0,69186.0,0.014469]
[1770473496768,0.58333333,69221.0,69180.0,0.65181371]
[1770473497062,0.58333333,69221.0,69184.0,0.014469]
[1770473497274,0.58333333,69221.0,69180.0,0.65181371]
[1770473497768,0.58333333,69221.0,69184.0,0.014469]
[1770473498566,0.58333333,69221.0,69193.0,0.014467]
[1770473498768,0.58333333,69221.0,69186.0,0.014469]
[1770473498955,0.58333333,69221.0,69194.0,0.014467]
[1770473499163,0.58333333,69221.0,69196.0,0.014467]
[1770473500976,0.58333333,69221.0,69184.0,0.014469]
[1770473501273,0.58333333,69221.0,69194.0,0.014467]
[1770473501668,0.58333333,69221.0,69191.0,0.014468]
[1770473502269,0.58333333,69221.0,69188.0,0.014468]
[1770473502464,0.58333333,69221.0,69194.0,0.29527208]
[1770473503170,0.58333333,69221.0,69194.0,0.29427208]
[1770473505077,0.58333333,69221.0,69180.0,0.65181371]
[1770473505279,0.58333333,69221.0,69183.0,0.014469]
[1770473506182,0.58333333,69221.0,69185.0,0.014469]
[1770473507574,0.58333333,69221.0,69180.0,0.65181371]
[1770473507772,0.58333333,69221.0,69186.0,0.014469]
[1770473509176,0.58333333,69221.0,69183.0,0.014469]
[1770473510082,0.58333333,69221.0,69185.0,0.014469]
[1770473511481,0.58333333,69221.0,69180.0,0.65181371]
[1770473511482,0.58333333,69221.0,69198.0,0.014466]
[1770473512074,0.58333333,69221.0,69189.0,0.014468]
[1770473512283,0.58333333,69232.0,69210.0,0.014464]
[1770473512479,0.0002,69233.0,69216.0,0.014463]
[1770473512674,0.0002,69233.0,69194.0,0.11417441]
[1770473512675,0.0002,69233.0,69212.0,0.014463]
[1770473513073,0.58333333,69240.0,69212.0,0.014463]
[1770473513274,0.58333333,69240.0,69195.0,0.11417441]
[1770473513481,0.58333333,69240.0,69208.0,0.014464]
[1770473513880,0.58333333,69240.0,69218.0,0.65415345]
[1770473515474,0.58333333,69240.0,69220.0,0.08542482]
[1770473515887,0.58333333,69240.0,69212.0,0.014463]
[1770473516480,0.58333333,69240.0,69214.0,0.014463]
[1770473517187,0.2955775,69240.0,69239.0,0.2825812]
[1770473517386,0.2955775,69240.0,69232.0,0.2869753]
[1770473517387,0.2955775,69240.0,69232.0,0.27603585]
[1770473517595,0.2955775,69240.0,69222.0,0.25745814]
[1770473518887,0.2955775,69240.0,69222.0,0.27191914]
[1770473519488,0.2955775,69240.0,69222.0,0.25745814]
[1770473520080,0.2955775,69240.0,69232.0,0.28980834]
[1770473520595,0.56786811,69263.0,69239.0,0.28896999]
[1770473520782,0.56786811,69263.0,69232.0,0.28980834]
[1770473520981,0.56786811,69263.0,69221.0,0.5249023]
[1770473521388,0.56786811,69252.0,69221.0,0.5249023]
[1770473522183,0.56786811,69251.0,69214.0,0.55232582]
[1770473522382,0.56786811,69251.0,69223.0,0.29244877]
[1770473522690,0.56786811,69251.0,69224.0,0.53786282]
[1770473523185,0.43127574,69260.0,69231.0,0.53786282]
[1770473523383,0.56786811,69259.0,69228.0,0.01446]
[1770473523587,0.56786811,69259.0,69228.0,0.55232282]
[1770473523988,0.56786811,69259.0,69223.0,0.29244877]
[1770473524383,0.56786811,69253.0,69223.0,0.29244877]
[1770473524793,0.56786811,69249.0,69223.0,0.29244877]
[1770473525488,0.56786811,69249.0,69216.0,0.28698379]
[1770473526386,0.56078784,69248.0,69216.0,0.28698379]
[1770473526787,0.56078784,69248.0,69210.0,0.53786282]
[1770473527190,0.56078784,69246.0,69210.0,0.53786282]
[1770473527584,0.56078784,69245.0,69210.0,0.53786282]
[1770473528694,0.56078784,69245.0,69217.0,0.28828105]
[1770473528893,0.56078784,69245.0,69218.0,0.55730727]
[1770473529487,0.56078784,69245.0,69220.0,0.55730727]
[1770473532490,0.56078784,69245.0,69217.0,0.28828105]
[1770473533181,0.99206358,69245.0,69217.0,0.28828105]
[1770473533382,0.55231061,69244.0,69217.0,0.28828105]
[1770473533784,0.55231061,69244.0,69210.0,0.29374651]
[1770473533989,0.55231061,69243.0,69210.0,0.29374651]
[1770473534189,0.55231061,69243.0,69198.0,0.5748663]
[1770473534394,0.55231061,69233.0,69198.0,0.5748663]
[1770473534889,0.57582037,69243.0,69196.0,0.29311213]
[1770473534890,0.55231061,69228.0,69196.0,0.29311213]
[1770473535195,0.55231061,69223.0,69196.0,0.29311213]
[1770473535588,0.55231061,69219.0,69196.0,0.29311213]
[1770473536484,0.55231061,69218.0,69196.0,0.29311213]
[1770473536889,0.55231061,69218.0,69191.0,0.5748663]
[1770473537089,0.55231061,69218.0,69196.0,0.293401]
[1770473537294,0.55231061,69212.0,69189.0,0.00010837]
[1770473538091,0.55231061,69211.0,69189.0,0.00010837]
[1770473538392,0.43127574,69209.0,69180.0,0.2911255]
[1770473538587,0.55231061,69208.0,69180.0,0.2911255]
[1770473538788,0.43127574,69207.0,69180.0,0.2911255]
[1770473538998,0.55231061,69206.0,69180.0,0.2911255]
[1770473539385,0.55231061,69206.0,69176.0,0.5748663]
[1770473539386,0.55231061,69204.0,69176.0,0.5748663]
[1770473539787,0.55231061,69202.0,69176.0,0.5748663]
[1770473540193,0.55231061,69200.0,69176.0,0.5748663]
[1770473540598,0.57582037,69215.0,69176.0,0.5748663]
[1770473540599,0.55231061,69198.0,69176.0,0.5748663]
[1770473540800,0.55231061,69197.0,69176.0,0.5748663]
[1770473540998,0.57582037,69215.0,69179.0,0.29118826]
[1770473540999,0.55231061,69196.0,69179.0,0.29118826]
[1770473541401,0.55231061,69203.0,69180.0,0.5748663]
[1770473541696,0.55231061,69201.0,69180.0,0.5748663]
[1770473542095,0.55231061,69200.0,69180.0,0.5748663]
[1770473542795,0.55231061,69198.0,69173.0,0.5748663]
[1770473542998,0.55231061,69196.0,69173.0,0.5748663]
[1770473543192,0.55231061,69195.0,69173.0,0.5748663]
[1770473544695,0.43127574,69208.0,69180.0,0.5748663]
[1770473544898,0.55231061,69207.0,69184.0,0.5748663]
[1770473545796,0.55231061,69205.0,69180.0,0.5748663]
[1770473546001,0.00010837,69204.0,69180.0,0.5748663]
[1770473546197,0.55241898,69203.0,69180.0,0.5748663]
[1770473546499,0.55231061,69201.0,69179.0,0.29647332]
[1770473546703,0.55231061,69199.0,69179.0,0.29647332]
[1770473547000,0.55231061,69199.0,69180.0,0.001]
[1770473547199,0.55231061,69198.0,69180.0,0.001]
[1770473547404,0.55231061,69198.0,69186.0,0.77349479]
[1770473547802,0.55231061,69198.0,69179.0,0.29647332]
[1770473549302,0.55231061,69197.0,69179.0,0.29647332]
[1770473549504,0.55231061,69195.0,69174.0,0.5748663]
[1770473549907,0.55231061,69195.0,69174.0,0.5893373]
[1770473552802,0.55231061,69195.0,69179.0,0.28674468]
[1770473553002,0.55231061,69193.0,69179.0,0.28674468]
[1770473554098,0.43127574,69207.0,69179.0,0.28674468]
[1770473554308,0.55231061,69206.0,69179.0,0.86161098]
[1770473554514,0.55231061,69204.0,69179.0,0.86161098]
[1770473554700,0.55231061,69202.0,69179.0,0.86161098]
[1770473555005,0.55231061,69200.0,69179.0,0.86161098]
[1770473556605,0.57984036,69199.0,69179.0,0.86161098]
[1770473557003,0.57984036,69198.0,69179.0,0.86161098]
[1770473557204,0.57984036,69197.0,69179.0,0.86161098]
[1770473558811,0.57984036,69202.0,69180.0,0.54710571]
[1770473559103,0.57994873,69201.0,69180.0,0.54710571]
[1770473559310,0.57984036,69199.0,69180.0,0.54710571]
[1770473559506,0.43127574,69205.0,69180.0,0.54710571]
[1770473559711,0.43127574,69205.0,69186.0,0.54710571]
[1770473559907,0.00010837,69204.0,69186.0,0.54710571]
[1770473560107,0.57984036,69207.0,69186.0,0.54710571]
[1770473561307,0.57984036,69207.0,69186.0,0.56157471]
[1770473561621,0.43127574,69211.0,69189.0,0.54710571]
[1770473562015,1.0111161,69212.0,69189.0,0.54710571]
[1770473562315,0.43127574,69210.0,69189.0,0.54710571]
[1770473562516,0.43127574,69210.0,69197.0,0.77349479]
[1770473562811,1.0111161,69211.0,69189.0,0.54710571]
[1770473563317,0.57984036,69210.0,69189.0,0.54710571]
[1770473563515,0.57984036,69210.0,69185.0,0.014469]
[1770473563516,0.43127574,69211.0,69194.0,0.54710571]
[1770473563715,0.72040272,69228.0,69206.0,0.54710571]
[1770473564115,0.72040272,69228.0,69208.0,0.54710571]
[1770473564408,0.57984036,69230.0,69208.0,0.54710571]
[1770473564609,0.57984036,69230.0,69209.0,0.014464]
[1770473564807,0.57984036,69230.0,69210.0,0.54710571]
[1770473566922,0.57984036,69244.0,69212.0,0.54710571]
[1770473567221,0.57984036,69244.0,69214.0,0.54710571]
[1770473567521,0.57984036,69244.0,69216.0,0.54710571]
[1770473568620,0.72040272,69257.0,69222.0,0.54710571]
[1770473568621,0.57582037,69253.0,69222.0,0.54710571]
[1770473568820,0.57984036,69252.0,69222.0,0.54710571]
[1770473569519,0.57984036,69252.0,69224.0,0.54710571]
[1770473570221,0.57984036,69252.0,69233.0,0.290845]
[1770473572224,0.57984036,69252.0,69240.0,0.28793324]
[1770473572817,0.42983516,69267.0,69240.0,0.28793324]
[1770473573015,0.57984036,69266.0,69240.0,0.28793324]
[1770473573220,0.57984036,69258.0,69233.0,0.290845]
[1770473573424,0.57984036,69258.0,69209.0,0.54710571]
[1770473573616,0.57984036,69258.0,69211.0,0.54710571]
[1770473573617,0.42983516,69252.0,69211.0,0.54710571]
[1770473573823,0.097,69241.0,69213.0,0.54710571]
[1770473574019,0.57984036,69240.0,69213.0,0.54710571]
[1770473574229,0.57984036,69240.0,69213.0,0.45010571]
[1770473575226,0.57984036,69240.0,69213.0,0.45110571]
[1770473575626,0.57984036,69240.0,69222.0,0.29340722]
[1770473576526,0.57984036,69240.0,69215.0,0.28684336]
[1770473577320,0.57984036,69240.0,69219.0,0.77349479]
[1770473577823,0.57984036,69240.0,69219.0,0.014462]
[1770473578029,0.57984036,69240.0,69215.0,0.28684336]
[1770473580832,0.57984036,69240.0,69200.0,0.54710571]
[1770473581133,0.57984036,69235.0,69200.0,0.54710571]
[1770473581336,0.57984036,69230.0,69205.0,0.28572799]
[1770473581533,0.57984036,69230.0,69192.0,0.54710571]
[1770473581837,0.57984036,69221.0,69192.0,0.54710571]
[1770473582136,0.57984036,69220.0,69183.0,0.54710571]
[1770473582329,0.57984036,69220.0,69185.0,0.28936877]
[1770473582528,0.57984036,69219.0,69185.0,0.28936877]
[1770473582938,0.42983516,69214.0,69185.0,0.28936877]
[1770473583128,0.57984036,69213.0,69185.0,0.28936877]
[1770473583438,0.57984036,69206.0,69176.0,0.54710571]
[1770473583635,0.57984036,69206.0,69166.0,0.54710571]
[1770473583830,0.42983516,69203.0,69166.0,0.54710571]
[1770473584030,0.57984036,69202.0,69166.0,0.54710571]
[1770473584433,0.57984036,69200.0,69170.0,0.28251618]
[1770473584629,0.57984036,69198.0,69155.0,0.54710571]
[1770473584931,0.57984036,69196.0,69146.0,0.54710571]
[1770473585138,0.57984036,69182.0,69137.0,0.54710571]
[1770473585332,0.57984036,69180.0,69137.0,0.54710571]
[1770473585532,0.59984036,69167.0,69137.0,0.54710571]
[1770473585736,0.57984036,69165.0,69137.0,0.54710571]
[1770473585935,0.02,69167.0,69126.0,0.00015912]
[1770473585936,0.02,69138.0,69127.0,0.54710571]
[1770473586135,0.00014003,69137.0,69126.0,0.00015912]
[1770473586334,0.00014003,69136.0,69126.0,0.00015912]
[1770473586732,0.58160931,69151.0,69126.0,0.00015912]
[1770473587326,0.58160931,69151.0,69110.0,0.54561438]
[1770473587527,0.58160931,69151.0,69105.0,0.28614107]
[1770473587727,0.58160931,69151.0,69090.0,0.54561438]
[1770473587932,0.57582037,69175.0,69090.0,0.54561438]
[1770473587933,0.58160931,69142.0,69090.0,0.54561438]
[1770473588237,0.58160931,69140.0,69090.0,0.54561438]
[1770473588432,0.58160931,69138.0,69090.0,0.54561438]
[1770473588637,0.58160931,69136.0,69091.0,0.56010338]
[1770473588833,0.58160931,69135.0,69106.0,0.54561438]
[1770473589033,0.00014928,69134.0,69106.0,0.54561438]
[1770473589241,0.42983516,69153.0,69106.0,0.54561438]
[1770473589435,0.58160931,69133.0,69106.0,0.54561438]
[1770473589843,0.58160931,69131.0,69106.0,0.54561438]
[1770473590732,0.00015912,69130.0,69113.0,0.014484]
[1770473590940,0.72040272,69172.0,69099.0,0.29605919]
[1770473590941,0.55351339,69167.0,69120.0,0.53389286]
[1770473591237,0.55351339,69167.0,69120.0,0.54837586]
[1770473591543,0.55351339,69167.0,69124.0,0.53389286]
[1770473592237,0.55351339,69167.0,69137.0,0.77349479]
[1770473592541,0.55351339,69167.0,69129.0,0.53389286]
[1770473593039,0.55351339,69167.0,69117.0,0.53389286]
[1770473594143,0.55351339,69167.0,69120.0,0.53389286]
[1770473596254,0.55351339,69167.0,69111.0,0.53389286]
[1770473596543,0.55351339,69167.0,69112.0,0.014484]
[1770473596749,0.55351339,69167.0,69113.0,0.53389286]
[1770473599955,0.55351339,69165.0,69100.0,0.53389286]
[1770473600649,0.55351339,69162.0,69100.0,0.53389286]
[1770473600953,0.42983516,69160.0,69100.0,0.53389286]
[1770473601249,0.55351339,69159.0,69100.0,0.53389286]
[1770473601839,0.57617709,69160.0,69091.0,0.53389286]
[1770473601840,0.55351339,69157.0,69091.0,0.53389286]
[1770473602251,0.55351339,69154.0,69091.0,0.53389286]
[1770473602449,0.55351339,69154.0,69064.0,0.0002]
[1770473602450,0.55351339,69151.0,69092.0,0.53389286]
[1770473602639,0.55351339,69148.0,69092.0,0.53389286]
[1770473602952,0.55351339,69147.0,69092.0,0.53389286]
[1770473604350,0.55351339,69146.0,69092.0,0.53389286]
[1770473604550,0.55351339,69145.0,69092.0,0.53389286]
[1770473604945,0.42983516,69144.0,69092.0,0.53389286]
[1770473605147,0.55351339,69143.0,69092.0,0.53389286]
[1770473605351,0.55351339,69142.0,69092.0,0.53389286]
[1770473605752,0.55351339,69140.0,69092.0,0.53389286]
[1770473606951,0.55351339,69140.0,69088.0,0.29440235]
[1770473606952,0.55351339,69140.0,69094.0,0.53389286]
[1770473607456,0.55351339,69140.0,69110.0,0.77349479]
[1770473608551,0.55351339,69135.0,69094.0,0.53389286]
[1770473609153,0.55351339,69134.0,69094.0,0.53389286]
[1770473609346,0.42983516,69132.0,69094.0,0.53389286]
[1770473609548,0.55351339,69131.0,69094.0,0.53389286]
[1770473611048,0.55351339,69130.0,69094.0,0.53389286]
[1770473611846,0.55351339,69127.0,69094.0,0.53389286]
[1770473612349,0.55351339,69124.0,69094.0,0.53389286]
[1770473613446,0.42983516,69122.0,69094.0,0.53389286]
[1770473613641,0.55351339,69121.0,69086.0,0.53389286]
[1770473613846,0.55351339,69115.0,69068.0,0.53389286]
[1770473614254,0.192,69082.0,69068.0,0.53389286]
[1770473614951,0.55351339,69101.0,69068.0,0.53389286]
[1770473615149,0.55351339,69100.0,69068.0,0.53389286]
[1770473615951,0.55351339,69100.0,69074.0,0.84648927]
[1770473616252,0.55351339,69100.0,69075.0,0.5598137]
[1770473617358,0.42983516,69103.0,69075.0,0.5598137]
[1770473617662,0.54533287,69117.0,69089.0,0.5598137]
[1770473618450,0.54533287,69117.0,69075.0,0.5598137]
[1770473618652,0.349,69090.0,69075.0,0.5598137]
[1770473619247,0.54533287,69107.0,69075.0,0.5598137]
[1770473619448,0.54533287,69107.0,69075.0,0.2108137]
[1770473620555,0.57582037,69116.0,69075.0,0.2108137]
[1770473620556,1.12115324,69116.0,69076.0,0.014492]
[1770473620750,1.12115324,69116.0,69077.0,0.5598137]
[1770473620751,0.54533287,69115.0,69077.0,0.5598137]
[1770473623161,0.27746468,69101.0,69080.0,0.5598137]
[1770473623359,0.54533287,69115.0,69082.0,0.5598137]
[1770473623665,0.54533287,69115.0,69084.0,0.5598137]
[1770473624563,0.54533287,69130.0,69084.0,0.5598137]
[1770473625063,0.54533287,69129.0,69084.0,0.5598137]
[1770473625663,0.42938666,69119.0,69084.0,0.5743037]
[1770473626052,0.42938666,69121.0,69084.0,0.5743037]
[1770473626462,0.42938666,69120.0,69084.0,0.5598137]
[1770473626764,0.54533287,69119.0,69084.0,0.5598137]
[1770473627268,0.54533287,69108.0,69084.0,0.5598137]
[1770473627567,0.54533287,69107.0,69084.0,0.5598137]
[1770473627955,0.97471953,69107.0,69075.0,0.5598137]
[1770473628159,0.54533287,69106.0,69075.0,0.5598137]
[1770473628366,0.54533287,69105.0,69075.0,0.5598137]
[1770473630159,0.97471953,69105.0,69075.0,0.5598137]
[1770473630467,0.42938666,69104.0,69075.0,0.5598137]
[1770473630661,0.54533287,69103.0,69075.0,0.5598137]
[1770473631763,0.42938666,69104.0,69075.0,0.5598137]
[1770473632868,0.42938666,69105.0,69083.0,0.5598137]
[1770473633258,0.42938666,69108.0,69083.0,0.5598137]
[1770473633666,0.42938666,69106.0,69083.0,0.5598137]
[1770473633970,0.54533287,69105.0,69083.0,0.5598137]
[1770473634162,0.42938666,69103.0,69083.0,0.5598137]
[1770473634564,0.42938666,69102.0,69083.0,0.5598137]
[1770473635360,0.54533287,69103.0,69075.0,0.5598137]
[1770473636166,0.54533287,69102.0,69075.0,0.5598137]
[1770473636560,0.97471953,69102.0,69075.0,0.5598137]
[1770473637367,0.54533287,69102.0,69075.0,0.5598137]
[1770473637862,0.97471953,69102.0,69075.0,0.5598137]
[1770473638763,0.54533287,69102.0,69075.0,0.5598137]
[1770473640873,0.54533287,69102.0,69075.0,0.5608137]
[1770473641965,0.54533287,69102.0,69075.0,0.001]
[1770473642168,0.54533287,69102.0,69068.0,0.5598137]
[1770473642471,0.54533287,69096.0,69067.0,0.28273461]
[1770473642870,0.54533287,69095.0,69060.0,0.5598137]
[1770473643272,0.082,69061.0,69060.0,0.5598137]
[1770473643576,0.54533287,69082.0,69060.0,0.2877481]
[1770473645071,0.54533287,69082.0,69053.0,0.85060507]
[1770473645072,0.54533287,69082.0,69053.0,0.29079137]
[1770473645374,0.29203284,69100.0,69050.0,0.0001149]
[1770473645375,0.54533287,69079.0,69050.0,0.0001149]
[1770473645566,0.54533287,69079.0,69041.0,0.28887069]
[1770473645762,0.54533287,69079.0,69037.0,0.5598137]
[1770473645763,0.349,69051.0,69037.0,0.55967258]
[1770473646168,0.349,69051.0,69019.0,0.0002]
[1770473646169,0.349,69051.0,69042.0,0.28370639]
[1770473646369,0.349,69051.0,69035.0,0.2866055]
[1770473646571,0.5731652,69055.0,69029.0,0.48622515]
[1770473646972,0.5731652,69055.0,69039.0,0.0002]